Cogmind - Beta 14 @@@ ROGUE MODE // 2024.10.20 @ 08:43:16 Player: toydarian Result: Destroyed by D-53 Grenadier with Mini Grenade Launcher Performance ------------- Evolutions (0) 0 Regions Visited (2) 400 Robots Destroyed (24) 120 Value Destroyed (554) 554 Prototype IDs (0) 0 Alien Tech Used (0) 0 Bonus (0) 0 TOTAL SCORE: 1074 Bonus ------- None Cogmind --------- Core Integrity 0/250 Matter 260/300 Energy 49/250 System Corruption 0% Temperature Cool (0) Movement Core (500) Ox9 Location -10/Mines Parts ------- > --- POWER (1) -------- Ion Engine > --- PROPULSION (2) --- (None) > --- UTILITY (2) ------ Large Storage Unit Core Shielding > --- WEAPON (2) ------- Light Assault Rifle Light Assault Rifle > --- INVENTORY (15) --- Light Ion Engine Small Storage Unit Visual Processing Unit Signal Interpreter Core Shielding Core Shielding Core Shielding Propulsion Shielding Weapon Shielding Light Armor Plating Mining Laser Peak State ------------ > --- POWER ------------ Ion Engine > --- PROPULSION ------- Light Treads Light Treads > --- UTILITY ---------- Large Storage Unit Propulsion Shielding > --- WEAPON ----------- EM Pulse Gun Assault Rifle > --- INVENTORY -------- Light Ion Engine Light Treads Small Storage Unit Visual Processing Unit Signal Interpreter Propulsion Shielding Weapon Shielding Light Armor Plating Grenade Launcher [Rating: 8] Favorites ----------- Power Ion Engine Engine Ion Engine Propulsion Light Treads Treads Light Treads Utility Large Storage Unit Storage Large Storage Unit Protection Propulsion Shielding Weapon EM Pulse Gun Energy Gun EM Pulse Gun Ballistic Gun Assault Rifle Launcher Grenade Launcher Special Weapon Mining Laser Build | -11 -10 -10 ------- Run | Yrd Mat Min Slots Evolved . | . . . Power . | . . . Propulsion . | . . . Utility . | . . . Weapon . | . . . Parts Attached 23 | 6 12 5 Power 5 | 1 2 2 Engine 5 | 1 2 2 Core . | . . . Reactor . | . . . Propulsion 2 | 2 . . Treads 2 | 2 . . Leg . | . . . Wheel . | . . . Hover . | . . . Flight . | . . . Utility 4 | 1 2 1 Device . | . . . Storage 2 | 1 1 . Processor . | . . . Hackware . | . . . Protection 2 | . 1 1 Artifact . | . . . Weapon 12 | 2 8 2 Energy Gun 3 | 1 2 . Energy Cannon . | . . . Ballistic Gun 3 | 1 . 2 Ballistic Cannon . | . . . Launcher 3 | . 3 . Special Weapon 3 | . 3 . Impact Weapon . | . . . Slashing Weapon . | . . . Piercing Weapon . | . . . Special Melee Weapon . | . . . Unidentified Prototypes . | . . . Parts Lost 10 | . 3 7 Power 3 | . 1 2 Propulsion 2 | . . 2 Utility 1 | . . 1 Weapon 4 | . 2 2 Highest Loss Streak 6 | . 1 6 To Critical Strikes . | . . . Average Slot Usage (%) 96 | . 96 94 Engine 13 | . 13 13 Treads 27 | . 28 26 Storage 14 | . 14 14 Protection 11 | . 10 14 Energy Gun 12 | . 12 13 Ballistic Gun 7 | . 8 . Launcher 4 | . 3 13 Special Weapon 3 | . 3 . Peak Build Rating 8 | 6 8 8 Average Rating 7 | 3 7 7 On Entrance 4 | . 6 8 Naked Turns . | . . . Heaviest Build 31 | 12 31 31 Greatest Support 40 | 40 40 40 Greatest Overweight (x) . | . . . Average Overweight (x) . | . . . Largest Inventory Capacity 15 | 8 15 15 Average Capacity 13 | 6 13 15 Most Carried 15 | 5 14 15 Average Carried 8 | 2 8 14 Final Capacity 15 | 8 15 15 Final Carried 14 | 1 14 11 Class Distribution -------------------- 100% | Mutant Dominant Class ---------------- Mutant | -10/Materials Mutant | -10/Mines Resources | -11 -10 -10 ----------- Run | Yrd Mat Min Matter Collected 562 | 243 309 10 Remotely . | . . . Salvage Created 783 | . 767 16 Parts 45 | . 38 7 Haulers Intercepted 2 | . 2 . Recyclers Shooed . | . . . Parts Field Recycled . | . . . Retrieved Matter . | . . . Parts Self-Destructed . | . . . Prevented . | . . . Kills | -11 -10 -10 ------- Run | Yrd Mat Min Combat Hostiles Destroyed 16 | . 13 3 Guns 10 | . 10 . AOE 6 | . 3 3 Classes Destroyed 6 | . 6 . Worker 1 | . 1 . Hauler 2 | . 2 . Operator 2 | . 2 . Watcher 3 | . 3 . Swarmer 6 | . 3 3 Grunt 10 | . 10 . Best Kill Streak 3 | . 3 3 Combat Bots Only 3 | . 2 3 Max Kills in Single Turn 2 | . 1 2 Gunslinging . | . . . Exploded 2 | . 1 2 Melee . | . . . Uniques/NPCs Destroyed . | . . . Combat | -11 -10 -10 -------- Run | Yrd Mat Min Hostile Shots Fired 72 | . 54 18 Missed 22 | . 20 2 Damage Taken 1015 | . 481 534 Core 258 | . 44 214 Absorbed by Shields . | . . . Redirected to Shielding 69 | . 15 54 Core Remaining (%) 100 | 100 . . Volleys Fired 70 | . 65 5 Largest 2 | . 2 2 Hottest 100 | . 100 70 Shots Fired 126 | . 118 8 Gun 113 | . 108 5 Cannon . | . . . Launcher 7 | . 4 3 Special 6 | . 6 . Kinetic 49 | . 49 . Thermal 6 | . 6 . Explosive 7 | . 4 3 Electromagnetic 64 | . 59 5 Robot Hit Streak 7 | . 7 2 Robot Miss Streak 4 | . 4 4 Penetration Max . | . . . Secondary Targets 4 | . 4 . Max Gunslinging Chain 1 | . 1 . Shots Hit Robots 71 | . 68 3 Core Hits 35 | . 30 5 Critical Kills . | . . . Critical Parts Destroyed . | . . . Critical Strikes 1 | . 1 . Corrupt 1 | . 1 . Melee Attacks . | . . . Impact . | . . . Slashing . | . . . Piercing . | . . . Sneak Attacks . | . . . Combat Hostiles . | . . . Follow-up Attacks . | . . . Damage Inflicted 1379 | . 1211 168 Guns 911 | . 890 21 Cannons . | . . . Explosions 468 | . 321 147 Melee . | . . . Ramming . | . . . Kinetic 282 | . 282 . Thermal 194 | . 194 . Explosive 274 | . 127 147 Electromagnetic 629 | . 608 21 Impact . | . . . Slashing . | . . . Piercing . | . . . Highest Corruption . | . . . Average Corruption . | . . . Corruption Purged . | . . . Corruption Blocked . | . . . Overload Shots . | . . . Overflow Damage 45 | . 45 . Projectiles . | . . . Explosions 45 | . 45 . Melee . | . . . Knockbacks . | . . . Impact . | . . . Kinetic . | . . . Secondary . | . . . Self-Inflicted Damage 59 | . 42 17 Shots 2 | . 1 1 Rammed . | . . . Targets Rammed . | . . . Kicked . | . . . Crushed . | . . . Highest Temperature 82 | . 82 9 Average Temperature 20 | . 21 6 Received Heat Transfer 261 | . 261 . Siege Activations . | . . . Robots Corrupted . | . . . Combat Hostiles . | . . . Parts Fried 2 | . 2 . Impact Corruptions . | . . . Robots Melted . | . . . Combat Hostiles . | . . . Parts Melted . | . . . Heat Transferred 150 | . 150 . Parts Sabotaged . | . . . Parts Stolen . | . . . Parts Stripped . | . . . Power Chain Reactions 4 | . 4 . Alert | -11 -10 -10 ------- Run | Yrd Mat Min Peak Influence 272 | . 272 105 Initial 31 | . . 31 Average 128 | . 133 98 Maximum Alert Level 1 | . 1 . Low Security (%) 87 | 100 86 100 Level 1 12 | . 13 . Level 2 . | . . . Level 3 . | . . . Level 4 . | . . . Level 5 . | . . . High Security . | . . . Max Security . | . . . Squads Dispatched 3 | . 3 . Investigation 1 | . 1 . Extermination . | . . . Reinforcement 2 | . 2 . Assault . | . . . Garrison . | . . . Intercept . | . . . Searches Triggered . | . . . Construction Impeded . | . . . Haulers Reinforced . | . . . Active Scanning Responses . | . . . Cargo Convoy Interrupts . | . . . Stealth | -11 -10 -10 --------- Run | Yrd Mat Min Distress Signals 3 | . 3 . Communications Jammed . | . . . Distress Signals . | . . . Times Spotted 33 | . 28 5 Peak Tracking Total 4 | . 4 3 Tactical Retreats 4 | . 4 . Traps | -11 -10 -10 ------- Run | Yrd Mat Min Traps Triggered . | . . . Indirectly . | . . . Trap Hack Attempts . | . . . Triggered . | . . . Disarmed 6 | . 6 . Reprogrammed 6 | . 6 . Reused 6 | . 6 . Traps Extracted . | . . . Installed . | . . . Triggered 6 | . 6 . Machines | -11 -10 -10 ---------- Run | Yrd Mat Min Machines Disabled 4 | . 4 . Max in Single Turn 1 | . 1 . Machines Repaired . | . . . Machines Dismantled . | . . . Machines Sabotaged . | . . . Overloaded Fab Kills . | . . . Hacking | -11 -10 -10 --------- Run | Yrd Mat Min Machines Accessed 5 | . 5 . Terminals 5 | . 5 . Fabricators . | . . . Repair Stations . | . . . Recycling Units . | . . . Scanalyzers . | . . . Garrison Access . | . . . Total Hacks 12 | . 12 . Successful 7 | . 7 . Failed 5 | . 5 . Catastrophic 2 | . 2 . Database Lockouts . | . . . Manual 5 | . 5 . Terminals 12 | . 12 . Fabricators . | . . . Repair Stations . | . . . Recycling Units . | . . . Scanalyzers . | . . . Garrison Access . | . . . Terminal Hacks 7 | . 7 . Locate Traps 5 | . 5 . Disarm Traps 1 | . 1 . Reprogram Traps 1 | . 1 . Fabricator Hacks . | . . . Repair Station Hacks . | . . . Recycling Unit Hacks . | . . . Scanalyzer . | . . . Garrison Access Hacks . | . . . Unauthorized Hacks . | . . . Terminals . | . . . Fabricators . | . . . Repair Stations . | . . . Recycling Units . | . . . Scanalyzers . | . . . Garrison Access . | . . . Data Cores Recovered . | . . . Used . | . . . Hacking Detections 3 | . 3 . Full Trace Events 1 | . 1 . Feedback Events . | . . . Feedback Blocked . | . . . Robot Schematics Acquired . | . . . Robots Built . | . . . Authchips . | . . . Time . | . . . Total Robot Build Rating . | . . . Part Schematics Acquired . | . . . Parts Built . | . . . Authchips . | . . . Time . | . . . Total Part Build Rating . | . . . Parts Repaired . | . . . Time . | . . . Parts Recycled . | . . . Recycled Matter . | . . . Retrieved Matter . | . . . Retrieved Components . | . . . Parts Scanalyzed . | . . . Part Schematics Acquired . | . . . Parts Damaged . | . . . Bothacking | -11 -10 -10 ------------ Run | Yrd Mat Min Used RIF Installer . | . . . Robots Hacked . | . . . Non-combat . | . . . Combat . | . . . Robot Hacks Applied . | . . . Relay Couplers Released . | . . . Fabnet Peak Effective % . | . . . Robots Rewired . | . . . Allies Hacked . | . . . Hacks Repelled . | . . . Allies | -11 -10 -10 -------- Run | Yrd Mat Min Total Allies . | . . . Largest Group . | . . . Highest-Rated Group . | . . . Highest-Rated Ally . | . . . Total Orders . | . . . Ally Attacks . | . . . Total Damage . | . . . Kills . | . . . Allies Corrupted . | . . . Allies Melted . | . . . Intel | -11 -10 -10 ------- Run | Yrd Mat Min Robot Analysis Total . | . . . Derelict Logs Recovered . | . . . Drone Launches . | . . . Drone Recoveries . | . . . Exploration | -11 -10 -10 ------------- Run | Yrd Mat Min Turns Passed 2201 | 47 2017 137 Spaces Moved 1212 | 35 1104 73 Core 18 | 18 . . Treads 1194 | 17 1104 73 Legs . | . . . Wheels . | . . . Hover . | . . . Flight . | . . . Fastest Speed 50 | 50 160 160 Average Speed 158 | 103 160 160 Slowest Speed 160 | 160 160 160 Overloaded Moves . | . . . Propulsion Burnouts . | . . . Robots Hopped . | . . . Cave-ins Triggered . | . . . Exploration Rate (%) 42 | 3 99 26 Regions Visited 2 Branch Regions 1 Pre-discovered Areas . | . . . Known Exits Taken . | . . . Unknown Exits Taken 2 | 1 1 . Scrap Searched . | . . . Spaces Dug 4 | . 4 . Terrain Destroyed 51 | . 33 18 Melee . | . . . Projectile 4 | . 4 . AOE 47 | . 29 18 Terrain Rammed . | . . . Walls Destroyed . | . . . Machines Disabled . | . . . Actions | -11 -10 -10 --------- Run | Yrd Mat Min Total 1353 | 45 1223 85 Wait 22 | . 22 . Move 1210 | 34 1103 73 Hop . | . . . Pick Up 25 | 5 18 2 Fast Attach 2 | 2 . . Attach 15 | 4 6 5 Detach 2 | . 2 . Swap 6 | . 6 . Drop 1 | . 1 . Fire 70 | . 65 5 Melee . | . . . Ram . | . . . Kick . | . . . Crush . | . . . Escape Stasis . | . . . Rewire . | . . . Trap . | . . . Miscellaneous . | . . . Route ------- -11/Scrapyard -10/Materials (discovered 6 exits: [*Mat x3] / [*Min x2] / [*Sub]) -10/Mines History --------- Turn | Location | Event 24 | -11/Scrapyard | Discovered new exit (range 15) 48 | -11/Scrapyard | Entered Materials 310 | -10/Materials | Build established: Mutant 354 | -10/Materials | Discovered new exit (range 13) 539 | -10/Materials | Discovered new exit (range 15) 1222 | -10/Materials | Discovered new exit (range 13) 1386 | -10/Materials | Discovered new exit (range 16) 1872 | -10/Materials | Discovered new exit (range 3) 2057 | -10/Materials | Discovered new exit (range 15) 2065 | -10/Materials | Entered Mines 2141 | -10/Mines | Assembled infested the area 2199 | -10/Mines | Core integrity fell below 50% 2201 | -10/Mines | Core integrity fell below 20% 2202 | -10/Mines | Destroyed by D-53 Grenadier with Mini Grenade Launcher Last Messages --------------- Something is scanning the area. 02066_ Ion Engine destroyed. 02067_ S-10 Pest destroyed. 02072_ The unstable cave ceiling collapses. 02076_ Acquired Lgt. Assault Rifle. 02077_ Acquired 6 matter. 02078_ Acquired 3 matter. 02081_ Acquired 1 matter. 02085_ Acquired Lgt. Assault Rifle. 02141_ ALERT: Infestation in the mines, dispatching Demolisher response squad. 02150_ K-01 Serf collects debris. 02190_ C-30 ARC bursts open, deploying its payload. 02190_ D-53 Grenadier unfolds itself. 02194_ Propulsion Shielding destroyed. 02194_ Lgt. Treads destroyed. 02194_ Grenade Launcher destroyed. 02196_ Lgt. Treads destroyed. 02196_ Lgt. Ion Engine destroyed. 02198_ EM Pulse Gun destroyed. Map ----- +----------------------------------------------------+ | | | | | | | | | | | | | ???????????????????????????????????????? | | ???????????????????????????????????????? | | ???????????????????????????????????????? | | ###????????????????????????????????????? | | ##???????????????????????????????????? | | ##??????????????????????????????????? | | #??????????????????????????????????? | | #??????????????????????????????????? | | #?????????????????????????????????? | | ???????????????????????????????????????? | | ???????????????????????????????????????? | | ???????????????????????????????????????? | | ???????????????????????????????????????? | | ??????????????????????######???????????? | | #?????????????????????# ###?????????? | | ##???????????####????## #?????????? | | #??????????## ##??## ##????????? | | #??????????# #### #????????? | | ##????####??# #????????? | | ##?#### ##?## %d @ #????????? | | ### #??# # d #????????? | | #### # #????????? | | ### ##????????? | | # #####?### # ##?????????? | | # ## #???????### ###??????????? | | ## #### #?????????# #????????????? | | ?#######??# #?????????# #????????????? | | ?????????? #?????????# ????????????? | | ??????????###?????????# ???????????? | | ??????????????????????## ##??????????? | | ???????????????????????### #???????????? | | ?????????????????????????? #???????????? | | ??????????????????????????r#???????????? | | ?????????????????????????? ????????????? | | ??????????????????????????#????????????? | | ???????????????????????????????????????? | | ???????????????????????????????????????? | | ???????????????????????????????????????? | | ???????????????????????????????????????? | | ???????????????????????????????????????? | | ???????????????????????????????????????? | | ???????????????????????????????????????? | | ???????????????????????????????????????? | | ???????????????????????????????????????? | +----------------------------------------------------+ Best States ------------- Heat Dissipation 25 Energy Generation 10 Energy Capacity 250 Matter Stores 300 Matter Capacity 300 Sight Range 16 Terrain Scan Density 10 Core Shielding 20 Propulsion Shielding 33 Evasion (%) 50 Recoil Reduction 2 Item Schematics ----------------- None Robot Schematics ------------------ None Fabricated ------------ Nothing Alien Tech Used ----------------- None Achievements -------------- None Challenges ------------ None Game ------ Seed HeatSystemDrivehammer Manual? 0 Play Time 00:21:05 Cumulative 18.9 hours Start 2024.10.20 @ 08:23:28 End 2024.10.20 @ 08:43:16 Sessions 1 Manual Loads 0 Difficulty Rogue Special Mode None Game No. 13 Rogue 6 Adventurer 0 Explorer 7 Win Type - Total 1 Types 1/0/0/0/0/0/0/0/0 Lore% 11 Gallery% 17 Achievement% 22 Wizard Run 0 Options --------- Layout 0 ASCII 0 Keyboard 0 Movement Mouse Keybinds 0 Fullscreen 1 Font 24/Terminus Map View 76x50 Zoom Use 0% Tactical HUD 1 Map Filters NONE Filters NONE Steam 1 RUN: 43287e24-b45b-4f27-b54a-e371870068b1